Cogmind - Beta 9.6 @@@ ROGUE MODE // 2020.07.14 @ 10:42:50 // Winter2019/RPGLIKE Player: Hermelin Result: Destroyed by 8R-AWN with 8R-AWN's Boregun Performance ------------- Evolutions (1) 500 Regions Visited (5) 1000 Robots Destroyed (73) 365 Value Destroyed (1942) 1942 Prototype IDs (10) 200 Alien Tech Used (0) 0 Bonus (118) 118 TOTAL SCORE: 4125 Bonus ------- High Alert Combat Kills 265 Friendly Fire -147 Cogmind --------- Core Integrity 0/750 Matter 247/300 Energy 228/270 System Corruption 0% Temperature Cool (0) Movement Flying (32) Location -9/Exiles Parts ------- > --- POWER (2) -------- Light Nuclear Core Light Nuclear Core > --- PROPULSION (4) --- VTOL Module VTOL Module VTOL Module Improved Flight Unit > --- UTILITY (5) ------ Improved Heat Sink Improved Signal Interpreter Targeting Computer Improved Light Armor Plating Shield Generator > --- WEAPON (3) ------- Improved Medium Laser Advanced Beam Cannon Katana > --- INVENTORY (3) ---- Improved Light Armor Plating Beamcaster Rocket Launcher Peak State ------------ > --- POWER ------------ Light Nuclear Core Light Nuclear Core > --- PROPULSION ------- VTOL Module VTOL Module VTOL Module Improved Flight Unit > --- UTILITY ---------- Improved Heat Sink Improved Signal Interpreter Targeting Computer Improved Light Armor Plating Shield Generator > --- WEAPON ----------- Improved Medium Laser Advanced Beam Cannon Katana > --- INVENTORY -------- Improved Light Armor Plating Beamcaster Rocket Launcher [Rating: 36] Favorites ----------- Power Light Nuclear Core Engine Light Ion Engine Power Core Light Nuclear Core Propulsion VTOL Module Flight Unit VTOL Module Utility Targeting Computer Device Improved Heat Sink Processor Targeting Computer Protection Light Armor Plating Weapon Rocket Launcher Energy Gun Improved Medium Laser Energy Cannon Advanced Beam Cannon Ballistic Gun Assault Rifle Launcher Rocket Launcher Special Weapon Mining Laser Impact Weapon Maul Slashing Weapon Katana Build | -11 -10 -10 -9 -9 -9 ------- Run | Scr Mat Min Mat Min Exi Slots Evolved 10 | 2 1 2 4 1 . Power 1 | . . . 1 . . Propulsion 3 | . . 2 1 . . Utility 4 | 1 1 . 1 1 . Weapon 2 | 1 . . 1 . . Parts Attached 41 | 3 12 5 17 3 1 Power 7 | 1 3 1 2 . . Engine 3 | 1 1 . 1 . . Core 4 | . 2 1 1 . . Reactor . | . . . . . . Propulsion 10 | . 2 2 6 . . Treads . | . . . . . . Leg . | . . . . . . Wheel . | . . . . . . Hover . | . . . . . . Flight 10 | . 2 2 6 . . Utility 12 | . 4 . 5 3 . Device 4 | . 2 . 1 1 . Storage . | . . . . . . Processor 3 | . 2 . 1 . . Hackware . | . . . . . . Protection 5 | . . . 3 2 . Artifact . | . . . . . . Weapon 12 | 2 3 2 4 . 1 Energy Gun 4 | 1 2 . 1 . . Energy Cannon 1 | . . . 1 . . Ballistic Gun 1 | 1 . . . . . Ballistic Cannon . | . . . . . . Launcher 2 | . . 1 1 . . Special Weapon 1 | . . 1 . . . Impact Weapon 1 | . 1 . . . . Slashing Weapon 2 | . . . 1 . 1 Piercing Weapon . | . . . . . . Special Melee Weapon . | . . . . . . Unidentified Prototypes 1 | . . . 1 . . Parts Lost . | . . . . . . Power . | . . . . . . Propulsion . | . . . . . . Utility . | . . . . . . Weapon . | . . . . . . Highest Loss Streak . | . . . . . . Average Slot Usage (%) 96 | . 92 94 97 99 100 Engine 3 | . 11 . . . . Core 10 | . 1 11 14 14 14 Flight 24 | . 11 32 27 28 28 Device 11 | . 13 11 8 13 14 Processor 19 | . 26 22 16 14 14 Protection 4 | . . . 8 7 7 Energy Gun 9 | . 13 11 8 7 7 Energy Cannon 3 | . . . 4 7 7 Ballistic Gun 3 | . 11 . . . . Launcher 5 | . . 5 7 7 6 Naked Turns . | . . . . . . Heaviest Build 27 | 7 9 13 25 27 27 Greatest Support 31 | 8 10 20 31 31 31 Greatest Overweight (x) . | . . . . . . Average Overweight (x) . | . . . . . . Largest Inventory Capacity 3 | 2 2 2 3 3 3 Average Capacity 2 | 1 2 2 2 3 3 Most Carried 3 | 2 2 2 3 3 3 Average Carried 2 | 1 1 1 2 2 3 Final Capacity 3 | 2 2 2 3 3 3 Final Carried 3 | 2 2 2 3 3 3 Class Distribution -------------------- 52% | Mutant 18% | Scavenger-Sprinter 17% | Sprinter 11% | Scavenger-Mutant Dominant Class ---------------- Mutant | -10/Materials Mutant | -10/Mines Scavenger-Mutant | -9/Materials Sprinter | -9/Mines Sprinter | -9/Exiles Resources | -11 -10 -10 -9 -9 -9 ----------- Run | Scr Mat Min Mat Min Exi Matter Collected 952 | 230 273 72 171 51 155 Remotely . | . . . . . . Salvage Created 2449 | . 473 317 1468 181 10 Parts 154 | . 20 22 92 14 6 Haulers Intercepted 8 | . 2 . 6 . . Recyclers Shooed 2 | . 1 . 1 . . Parts Field Recycled . | . . . . . . Retrieved Matter . | . . . . . . Parts Self-Destructed . | . . . . . . Prevented . | . . . . . . Kills | -11 -10 -10 -9 -9 -9 ------- Run | Scr Mat Min Mat Min Exi Combat Hostiles Destroyed 58 | . 8 10 27 11 2 Guns 30 | . 8 4 12 6 . Cannons 16 | . . . 13 3 . AOE 11 | . . 5 2 2 2 Classes Destroyed 10 | . 5 . 4 1 . Hauler 8 | . 2 . 6 . . Recycler 1 | . . . 1 . . Operator 1 | . 1 . . . . Watcher 4 | . 1 . 3 . . Swarmer 7 | . 3 . . 4 . Grunt 31 | . 5 10 16 . . Brawler 1 | . . . 1 . . Duelist 1 | . . . 1 . . Sentry 11 | . . . 9 2 . Assembled 7 | . . . . 5 2 Best Kill Streak 5 | . 3 4 5 3 3 Combat Bots Only 5 | . 3 4 5 3 2 Max Kills in Single Turn 3 | . 1 2 2 3 1 Gunslinging . | . . . . . . Exploded 2 | . . 2 1 2 1 Melee . | . . . . . . Uniques/NPCs Destroyed 1 | . . . . . 1 EX-BIN (-9/Exiles) Combat | -11 -10 -10 -9 -9 -9 -------- Run | Scr Mat Min Mat Min Exi Damage Taken 3004 | . 605 347 800 216 1036 Core 2307 | . 507 287 586 174 753 Absorbed by Shields 429 | . . . . 45 384 Redirected to Core 1848 | . 315 200 484 143 706 Core Remaining (%) 78 | 100 . 57 . . . Volleys Fired 257 | . 54 22 98 26 57 Largest 3 | . 2 2 2 3 3 Hottest 157 | . 70 78 124 157 157 Shots Fired 449 | . 105 23 144 53 124 Gun 296 | . 105 21 91 26 53 Cannon 131 | . . . 52 26 53 Launcher 22 | . . 2 1 1 18 Special . | . . . . . . Kinetic 51 | . 51 . . . . Thermal 311 | . 54 . 99 52 106 Explosive 22 | . . 2 1 1 18 Electromagnetic 65 | . . 21 44 . . Robot Hit Streak 18 | . 11 15 18 10 10 Robot Miss Streak 4 | . 2 1 3 3 4 Penetration Max . | . . . . . . Secondary Targets 2 | . 2 . . . . Max Gunslinging Chain 1 | . 1 . . . . Shots Hit Robots 334 | . 66 22 119 31 96 Core Hits 142 | . 23 17 58 16 28 Critical Hits 7 | . . . 3 . 4 Critical Kills 2 | . . . 2 . . Critical Parts Destroyed 2 | . . . 1 . 1 Melee Attacks 16 | . . . 1 . 15 Impact . | . . . . . . Slashing 16 | . . . 1 . 15 Piercing . | . . . . . . Sneak Attacks . | . . . . . . Combat Hostiles . | . . . . . . Follow-up Attacks . | . . . . . . Damage Inflicted 5277 | . 693 644 2487 645 808 Guns 2700 | . 693 357 1257 337 56 Cannons 1094 | . . . 840 186 68 Explosions 1058 | . . 287 390 122 259 Melee 425 | . . . . . 425 Ramming . | . . . . . . Kinetic 269 | . 269 . . . . Thermal 2996 | . 424 158 1767 523 124 Explosive 603 | . . 129 93 122 259 Electromagnetic 984 | . . 357 627 . . Impact . | . . . . . . Slashing 425 | . . . . . 425 Piercing . | . . . . . . Highest Corruption . | . . . . . . Average Corruption . | . . . . . . Corruption Purged . | . . . . . . Overload Shots . | . . . . . . Overflow Damage 67 | . . . 22 14 31 Projectiles 14 | . . . . 14 . Explosions 53 | . . . 22 . 31 Melee . | . . . . . . Knockbacks . | . . . . . . Impact . | . . . . . . Kinetic . | . . . . . . Secondary . | . . . . . . Self-Inflicted Damage 307 | . . 114 176 17 . Shots 9 | . . 3 5 1 . Rammed . | . . . . . . Targets Rammed . | . . . . . . Kicked . | . . . . . . Crushed . | . . . . . . Highest Temperature 333 | . 323 21 288 108 333 Average Temperature 84 | . 86 6 71 40 131 Received Heat Transfer 774 | . 267 138 300 69 . Effects 2 | . 1 . . . 1 Interference 1 | . 1 . . . . Short Circuit 1 | . . . . . 1 Siege Activations . | . . . . . . Robots Corrupted 1 | . . 1 . . . Combat Hostiles 1 | . . 1 . . . Parts Fried 2 | . . 1 1 . . Impact Corruptions . | . . . . . . Robots Melted . | . . . . . . Combat Hostiles . | . . . . . . Parts Melted 13 | . 3 . 9 . 1 Heat Transferred 6370 | . 1258 100 3236 1073 703 Parts Sabotaged . | . . . . . . Parts Stolen . | . . . . . . Parts Stripped . | . . . . . . Power Chain Reactions 7 | . . 2 5 . . Missiles Intercepted . | . . . . . . Alert | -11 -10 -10 -9 -9 -9 ------- Run | Scr Mat Min Mat Min Exi Peak Influence 964 | . 211 298 964 390 . Average Influence 301 | . 77 184 566 323 . Maximum Alert Level 3 | . 1 1 3 1 . Low Security (%) 52 | 100 99 81 11 25 . Level 1 24 | . . 18 14 74 . Level 2 13 | . . . 41 . . Level 3 10 | . . . 32 . . Level 4 . | . . . . . . Level 5 . | . . . . . . High Security . | . . . . . . Max Security . | . . . . . . Squads Dispatched 5 | . 1 . 4 . . Investigation 3 | . . . 3 . . Extermination . | . . . . . . Reinforcement 1 | . 1 . . . . Assault 1 | . . . 1 . . Garrison . | . . . . . . Intercept . | . . . . . . Construction Impeded . | . . . . . . Haulers Reinforced . | . . . . . . Stealth | -11 -10 -10 -9 -9 -9 --------- Run | Scr Mat Min Mat Min Exi Distress Signals 5 | . 1 . 4 . . Communications Jammed . | . . . . . . Distress Signals . | . . . . . . Times Spotted 87 | . 16 9 39 16 7 Peak Tracking Total 9 | . 4 2 7 4 9 Tactical Retreats 2 | . . . 2 . . Traps | -11 -10 -10 -9 -9 -9 ------- Run | Scr Mat Min Mat Min Exi Traps Triggered 1 | . 1 . . . . Indirectly . | . . . . . . Trap Hack Attempts . | . . . . . . Triggered . | . . . . . . Disarmed . | . . . . . . Reprogrammed . | . . . . . . Reused . | . . . . . . Traps Extracted . | . . . . . . Installed . | . . . . . . Triggered . | . . . . . . Machines | -11 -10 -10 -9 -9 -9 ---------- Run | Scr Mat Min Mat Min Exi Machines Disabled 6 | . . . 1 1 4 Max in Single Turn 2 | . . . 1 1 2 Machines Sabotaged . | . . . . . . Garrisons Compromised . | . . . . . . Overloaded Fab Kills . | . . . . . . Fab Network Shutdowns . | . . . . . . Hacking | -11 -10 -10 -9 -9 -9 --------- Run | Scr Mat Min Mat Min Exi Machines Accessed 21 | . 8 . 11 . 2 Terminals 15 | . 7 . 8 . . Fabricators . | . . . . . . Repair Stations 2 | . 1 . 1 . . Recycling Units . | . . . . . . Scanalyzers 2 | . . . 2 . . Garrison Access . | . . . . . . Total Hacks 75 | . 23 . 48 . 4 Successful 54 | . 14 . 36 . 4 Failed 21 | . 9 . 12 . . Catastrophic 1 | . . . 1 . . Database Lockouts . | . . . . . . Manual 32 | . 14 . 18 . . Terminals 55 | . 21 . 34 . . Fabricators . | . . . . . . Repair Stations 4 | . 2 . 2 . . Recycling Units . | . . . . . . Scanalyzers 12 | . . . 12 . . Garrison Access . | . . . . . . Terminal Hacks 32 | . 10 . 18 . 4 Record 4 | . . . . . 4 Part Schematic 3 | . 2 . 1 . . Prototype ID Bank 5 | . 3 . 2 . . Branch Access Points 1 | . . . 1 . . Terminal Index 2 | . 1 . 1 . . Recycling Unit Index 1 | . . . 1 . . Alert Level 4 | . 2 . 2 . . Unreport Threat 3 | . . . 3 . . Locate Traps 5 | . 2 . 3 . . Recall Investigation 1 | . . . 1 . . Recall Assault 1 | . . . 1 . . Registered Components 1 | . . . 1 . . Registered Prototypes 1 | . . . 1 . . Fabricator Hacks . | . . . . . . Repair Station Hacks 4 | . 2 . 2 . . Scan Component 2 | . 1 . 1 . . Repair 2 | . 1 . 1 . . Recycling Unit Hacks . | . . . . . . Scanalyzer 12 | . . . 12 . . Insert Component 5 | . . . 5 . . Analyze 7 | . . . 7 . . Garrison Access Hacks . | . . . . . . Unauthorized Hacks 6 | . 2 . 4 . . Terminals 6 | . 2 . 4 . . Botnet 6 | . 2 . 4 . . Fabricators . | . . . . . . Repair Stations . | . . . . . . Recycling Units . | . . . . . . Scanalyzers . | . . . . . . Garrison Access . | . . . . . . Data Cores Recovered . | . . . . . . Used . | . . . . . . Hacking Detections 16 | . 8 . 8 . . Full Trace Events 4 | . . . 4 . . Feedback Events . | . . . . . . Feedback Blocked . | . . . . . . Robot Schematics Acquired . | . . . . . . Robots Built . | . . . . . . Matter . | . . . . . . Time . | . . . . . . Total Robot Build Rating . | . . . . . . Part Schematics Acquired 8 | . 2 . 6 . . Parts Built . | . . . . . . Matter . | . . . . . . Time . | . . . . . . Total Part Build Rating . | . . . . . . Parts Repaired 2 | . 1 . 1 . . Time 76 | . 38 . 38 . . Parts Recycled . | . . . . . . Recycled Matter . | . . . . . . Retrieved Matter . | . . . . . . Retrieved Components . | . . . . . . Parts Scanalyzed 5 | . . . 5 . . Part Schematics Acquired 5 | . . . 5 . . Parts Damaged . | . . . . . . Bothacking | -11 -10 -10 -9 -9 -9 ------------ Run | Scr Mat Min Mat Min Exi Used RIF Installer . | . . . . . . Robots Hacked . | . . . . . . Non-combat . | . . . . . . Combat . | . . . . . . Robot Hacks Applied . | . . . . . . Relay Couplers Released . | . . . . . . Robots Rewired . | . . . . . . Allies Hacked . | . . . . . . Hacks Repelled . | . . . . . . Allies | -11 -10 -10 -9 -9 -9 -------- Run | Scr Mat Min Mat Min Exi Total Allies 5 | . . . . 5 . Largest Group 4 | . . . . 4 4 Highest-Rated Group 48 | . . . . 48 48 Highest-Rated Ally 31 | . . . . 31 16 Total Orders . | . . . . . . Ally Attacks 34 | . . . . 7 27 Total Damage 288 | . . . . 62 226 Kills 7 | . . . . 1 6 Allies Corrupted . | . . . . . . Allies Melted . | . . . . . . Intel | -11 -10 -10 -9 -9 -9 ------- Run | Scr Mat Min Mat Min Exi Robot Analysis Total . | . . . . . . Derelict Logs Recovered 4 | . . 2 . 2 . Drone Launches . | . . . . . . Drone Recoveries . | . . . . . . Exploration | -11 -10 -10 -9 -9 -9 ------------- Run | Scr Mat Min Mat Min Exi Turns Passed 2787 | 26 730 366 765 539 361 Spaces Moved 3732 | 40 908 640 948 762 434 Core 181 | 40 141 . . . . Treads . | . . . . . . Legs . | . . . . . . Wheels . | . . . . . . Hover . | . . . . . . Flight 3551 | . 767 640 948 762 434 Fastest Speed 29 | 50 40 34 29 29 29 Average Speed 33 | 50 41 34 32 29 29 Slowest Speed 50 | 50 50 40 34 29 32 Overloaded Moves . | . . . . . . Propulsion Burnouts . | . . . . . . Robots Hopped 38 | . 5 9 12 12 . Cave-ins Triggered . | . . . . . . Exploration Rate (%) 74 | 3 98 99 76 92 81 Regions Visited 5 Branch Regions 3 Pre-discovered Areas 2 | . . 1 . 1 . Known Exits Taken 4 | . 1 1 1 1 . Unknown Exits Taken 1 | 1 . . . . . Scrap Searched 3 | . . 1 . 2 . Spaces Dug 1 | . . . 1 . . Terrain Destroyed 104 | . . 30 35 5 34 Melee 1 | . . . 1 . . Projectile 4 | . . . . . 4 AOE 99 | . . 30 34 5 30 Actions | -11 -10 -10 -9 -9 -9 --------- Run | Scr Mat Min Mat Min Exi Total 4752 | 44 1151 755 1253 1015 534 Wait 603 | . 162 70 130 214 27 Move 3654 | 39 897 621 925 738 434 Hop 35 | . 5 9 10 11 . Pick Up 23 | 2 7 4 8 2 . Fast Attach 20 | 3 11 2 3 1 . Attach 6 | . . 2 4 . . Detach 1 | . . . 1 . . Swap 15 | . 1 1 10 2 1 Drop 29 | . 12 3 11 3 . Fire 257 | . 54 22 98 26 57 Melee 16 | . . . 1 . 15 Ram . | . . . . . . Kick . | . . . . . . Crush . | . . . . . . Escape Stasis . | . . . . . . Rewire . | . . . . . . Trap . | . . . . . . Miscellaneous 93 | . 2 21 52 18 . Route ------- -11/Scrapyard -10/Materials (discovered 4 exits: *Mat x3 / *Min) -10/Mines (discovered 2 exits: *Mat x2) -9/Materials (discovered 2 exits: *Mat / *Min) -9/Mines (discovered 2 exits: *Mat / *Exi) -9/Exiles (discovered 1 exit: *Min) History --------- Turn | Location | Event 2 | -11/Scrapyard | Met Revision 17 5 | -11/Scrapyard | Upgraded with Utility slot (x1) 5 | -11/Scrapyard | Upgraded with Weapon slot (x1) 8 | -11/Scrapyard | Discovered new exit (range 15) 27 | -11/Scrapyard | Entered Materials 78 | -10/Materials | Upgraded with Utility slot (x1) 125 | -10/Materials | Discovered new exit (range 16) 214 | -10/Materials | Discovered new exit (range 8) 218 | -10/Materials | Identified exit to Materials 335 | -10/Materials | Build established: Mutant 547 | -10/Materials | Discovered exit to Materials (range 9) 576 | -10/Materials | Core integrity fell below 50% 705 | -10/Materials | Repaired Lgt. Nuclear Core 719 | -10/Materials | Identified exit to Mines 734 | -10/Materials | Discovered exit to Materials (range 5) 757 | -10/Materials | Entered Mines 759 | -10/Mines | Reached level 2 759 | -10/Mines | Core integrity fell below 20% 759 | -10/Mines | Upgraded with Propulsion slot (x2) 794 | -10/Mines | Discovered exit to Materials (range 5) 822 | -10/Mines | Learned location of Zion (-6) 828 | -10/Mines | Learned location of 1 exit from Materials 925 | -10/Mines | Received a Rocket Launcher from a helpful Derelict 962 | -10/Mines | Discovered exit to Materials (range 13) 1123 | -10/Mines | Entered Materials 1124 | -9/Materials | Identified exit to Mines 1125 | -9/Materials | Reached level 3 1125 | -9/Materials | Upgraded with Power slot (x1) 1125 | -9/Materials | Upgraded with Utility slot (x1) 1146 | -9/Materials | Reached level 4 1274 | -9/Materials | Core integrity fell below 50% 1454 | -9/Materials | Reached level 5 1456 | -9/Materials | Upgraded with Weapon slot (x1) 1523 | -9/Materials | First assault squad dispatched 1620 | -9/Materials | Reached level 6 1625 | -9/Materials | Upgraded with Propulsion slot (x1) 1626 | -9/Materials | Build established: Scavenger-Mutant 1654 | -9/Materials | Discovered new exit (range 6) 1659 | -9/Materials | Identified exit to Materials 1815 | -9/Materials | Repaired Katana 1888 | -9/Materials | Entered Mines 1890 | -9/Mines | Reached level 7 1893 | -9/Mines | Upgraded with Utility slot (x1) 1903 | -9/Mines | Learned location of 1 exit from Materials 1927 | -9/Mines | Build established: Scavenger-Sprinter 1959 | -9/Mines | Met a Derelict bent on vengeance 2017 | -9/Mines | Assembled infested the area 2018 | -9/Mines | Learned Materials terminal intel 2022 | -9/Mines | Assisted by a Guerilla fighting off Assembled 2065 | -9/Mines | Discovered exit to Materials (range 8) 2198 | -9/Mines | Assisted by bots powering up and referring to "LRC-V3" 2226 | -9/Mines | Learned location of Storage (-7) 2263 | -9/Mines | Deemed a non-threat by the Exiles lab entrance 2263 | -9/Mines | Discovered new exit (range 5) 2264 | -9/Mines | Identified exit to Exiles 2424 | -9/Mines | Build established: Sprinter 2427 | -9/Mines | Entered Exiles 2427 | -9/Exiles | Accompanied by 4 allies 2432 | -9/Exiles | Discovered new exit (range 15) 2436 | -9/Exiles | Identified exit to Mines 2441 | -9/Exiles | Met 8R-AWN 2447 | -9/Exiles | Met EX-HEX 2460 | -9/Exiles | Met EX-DEC 2467 | -9/Exiles | Visited The Gauntlet 2512 | -9/Exiles | Met EX-BIN 2541 | -9/Exiles | Attacked by the Exiles 2543 | -9/Exiles | Destroyed EX-BIN 2747 | -9/Exiles | Core integrity fell below 20% 2788 | -9/Exiles | Destroyed by 8R-AWN with 8R-AWN's Boregun Last Messages --------------- 02771_ Critical hit. 02771_ HV Slug penetrates Wall. 02771_ Penetrated by HV Slug. 02771_ Critical hit. 02771_ HV Slug penetrates Wall. 02775_ Penetrated by HV Slug. 02775_ HV Slug penetrates Wall. 02775_ Penetrated by HV Slug. 02775_ HV Slug penetrates Wall. 02779_ HV Slug penetrates FarCom Aligner. 02779_ HV Slug penetrates Machine. 02779_ Machine disabled. 02779_ HV Slug penetrates Machine. 02783_ Penetrated by HV Slug. 02783_ HV Slug penetrates Wall. 02783_ Penetrated by HV Slug. 02783_ HV Slug penetrates Wall. 02788_ Penetrated by HV Slug. 02788_ HV Slug penetrates Wall. 02788_ Penetrated by HV Slug. Map ----- +----------------------------------------------------+ | ???????????????????# #???#####???????????????? | | ???????????????????# #??"""""#???????????????? | | ???????????????????# ## """#???????????????? | | ???????????????????# X""#???????????????? | | ???????????????????# ## """#???????????????? | | ???????????######### #??"""""#???????????????? | | ???????????#""""""## #???#####???????????????? | | ???????????#"""" ## #???????????????????????? | | ???????????#""X" #???????????????????????? | | ???????????#" ###?????????????????????? | | ???????????#" ## # #?????????????????????? | | ???????????#""""""## # ?#####????????????????? | | ???????????##"###### # #"""""""??????????????? | | ??????????? "#????# # #" """""#?????????????? | | ??????????""" #???## ; # """"""#?????????????? | | ?????????#""" #???#; ;#; " """"#?????????????? | | ???????????"" #???# """ #?????????????? | | ????????????###???# ! "#?????????????? | | ??????????????????#" = * "#?????????????? | | ??????????????????#" "#?????????????? | | ???########???????#" "#?????????????? | | ???# """#???????#" [ ##????????????? | | ???#"" """#???????## * """""" ??????????? | | ???#"" #????????# = ""####??????????? | | ???#"" #????????#" """""????????????? | | ???#"" "#????????#" =@ # ????????????? | | ???# ""#????????#" g """"# "???????????? | | ???#"" ""#???????##" # #####?????????????? | | ???### ###?????## " # # ###????????????????? | | ???### ###?###### ##??????????????????? | | ####X# #"###"""" # #???????????????????? | | """""" " # #?#########?????????? | | "" """ # ###"""""""""##??????? | | " " " """ """"##?????? | | "" " #?????? | | " """#?????? | | " "#?????? | | " "##????? | | ""###??? | | " """""" """#??? | | ######""" "#??? | | ""##?????####""" ##?? | | """##?????????##""" ##? | | """##???????????#"""" ## | | ""#???????????##"" | | ########??####"""" | | ## ####""" | | """" | | # | | " ## | +----------------------------------------------------+ Best States ------------- Heat Dissipation 57 Energy Generation 23 Energy Capacity 360 Matter Stores 300 Matter Capacity 300 Sight Range 16 Robot Scan Range 14 Terrain Scan Density 10 Armor Coverage 150 Evasion (%) 64 Targeting Accuracy 5 Item Schematics ----------------- Flight Unit | -10/Materials | Hacked EM Pulse Gun | -10/Materials | Hacked Imp. Assault Rifle | -9/Materials | Scanalyzed Hvy. EM Pulse Gun | -9/Materials | Scanalyzed Katana | -9/Materials | Scanalyzed Imp. Targeting Computer | -9/Materials | Hacked Imp. Flight Unit | -9/Materials | Scanalyzed Rocket Launcher | -9/Materials | Scanalyzed Robot Schematics ------------------ None Fabricated ------------ Nothing Alien Tech Used ----------------- None Achievements -------------- Let's See Who's Tougher Challenges ------------ None RPGLIKE | -11 -10 -10 -9 -9 -9 --------- Run | Scr Mat Min Mat Min Exi Levels Raised 6 | . . 1 4 1 . XP Earned 12967 | 3000 1135 1750 5657 1225 200 XP Spent 11990 | 1850 800 1480 6370 1490 . Upgrades 30 | 5 1 6 16 2 . Power Slot 1 | . . . 1 . . Propulsion Slot 3 | . . 2 1 . . Utility Slot 4 | 1 1 . 1 1 . Weapon Slot 2 | 1 . . 1 . . Core Integrity 3 | . . 2 1 . . Heat Dissipation 3 | . . 2 . 1 . Energy Storage 1 | . . . 1 . . Mass Support 2 | 1 . . 1 . . Inventory Capacity 3 | 2 . . 1 . . Sensor Range 7 | . . . 7 . . Ranged Accuracy 1 | . . . 1 . . Protomatter Created 810 | . 10 190 535 75 . Integrity Restored 1820 | . 30 465 1045 280 . Core 1554 | . 30 465 885 174 . Parts 266 | . . . 160 106 . Protomatter Decayed 192 | . . . 101 51 40 Game ------ Seed MicroSurveybotGun Manual? 0 Play Time 01:02:19 Cumulative 46.4 hours Start 2020.07.14 @ 09:35:22 End 2020.07.14 @ 10:42:50 Sessions 1 Manual Loads 0 Difficulty Rogue Special Mode Winter2019/RPGLIKE Game No. 26 Rogue 26 Adventurer 0 Explorer 0 Win Type - Total 1 Types 0/0/0/1/0/0/0 Lore% 53 Gallery% 37 Achievement% 49 Wizard Run 0 Options --------- ASCII 0 Keyboard 0 Movement Numpad Keybinds 0 Fullscreen 1 Font 14/SmallcapsGlow Map View 84x54 Tactical HUD 1 Map Filters NONE Filters NONE Steam 1 RUN: c95a443b-bae7-4d87-bf3e-3e88a8b4f4cb